[Event "Belarus-ch Women 2022"]
[Site "Minsk"]
[Date "2022.01.16"]
[Round "6.4"]
[White "Zeliantsova, Kseniya"]
[Black "Koishman, Karina"]
[Result "1-0"]
[ECO "B40"]
[WhiteElo "1988"]
[BlackElo "1359"]
[Annotator "ChessBase"]
[PlyCount "63"]
[EventDate "2022.01.11"]
[EventType "tourn"]
[EventCountry "BLR"]
[SourceTitle "playchess.com"]
[Source "ChessBase"]
[SourceQuality "1"]
[TimeControl "40/5400+30:1800+30"]

1. e4 {[%emt 0:00:02]} c5 {[%emt 0:00:10]} 2. Nf3 {[%emt 0:00:07]} e6 {[%emt 0:00:08]} 3. Nc3 {[%emt 0:00:12]} Nc6 {[%emt 0:00:15]} 4. g3 {[%emt 0:00:07]} Nf6 {[%emt 0:00:18]} 5. Bg2 {[%emt 0:00:39]} d5 {[%emt 0:00:59]} 6. exd5 {[%emt 0:01:37]} exd5 {[%emt 0:00:16]} 7. d4 {[%emt 0:01:38]} h6 {[%emt 0:05:37]} 8. O-O {[%emt 0:02:02]} Be7 {[%emt 0:03:54]} 9. Be3 {[%emt 0:08:27]} cxd4 {[%emt 0:04:24]} 10. Nxd4 {[%emt 0:00:05]} O-O {[%emt 0:00:26]} 11. h3 {[%emt 0:01:24]} Ne5 {[%emt 0:07:46]} 12. b3 {[%emt 0:05:45]} Bb4 {[%emt 0:05:19]} 13. Nde2 {[%emt 0:08:01]} Nc6 {[%emt 0:08:10]} 14. Nb5 {[%emt 0:06:19]} a6 {[%emt 0:05:57]} 15. Nbd4 {[%emt 0:00:07]} Ne7 {[%emt 0:02:24]} 16. Qd3 {[%emt 0:06:53]} Bd7 {[%emt 0:04:09]} 17. f4 {[%emt 0:05:30]} Ne8 {[%emt 0:12:01]} 18. f5 {[%emt 0:01:55]} Rc8 {[%emt 0:06:53]} 19. Rf4 {[%emt 0:17:05]} Qc7 {[%emt 0:06:43]} 20. Raf1 {[%emt 0:06:45]} Bc5 {[%emt 0:05:06]} 21. Qd2 {[%emt 0:07:21]} Bxd4 {[%emt 0:03:30]} 22. Nxd4 {[%emt 0:00:05]} Qc3 {[%emt 0:00:47]} 23. Qc1 {[%emt 0:01:10]} Nc6 {[%emt 0:03:57]} 24. Nxc6 {[%emt 0:00:58]} Rxc6 {[%emt 0:03:31]} 25. Bxd5 {[%emt 0:00:23]} Rd6 {[%emt 0:00:38]} 26. Bg2 {[%emt 0:00:47]} Bb5 {[%emt 0:01:13]} 27. Re1 {[%emt 0:01:31]} Nf6 {[%emt 0:01:04]} 28. a4 {[%emt 0:00:39]} Bc6 {[%emt 0:01:49]} 29. Rc4 {[%emt 0:00:36]} Qa5 {[%emt 0:01:40]} 30. Bc5 {[%emt 0:01:43]} Rd2 {[%emt 0:01:50]} 31. Bxc6 {[%emt 0:01:41]} Rfd8 {[%emt 0:01:50]} 32. Bg2 {[%emt 0:02:21]} 1-0

[Event "Belarus-ch Women 2022"]
[Site "Minsk"]
[Date "2022.01.16"]
[Round "6.5"]
[White "Norman, Kseniya"]
[Black "Khomich, Maryna"]
[Result "1/2-1/2"]
[ECO "A07"]
[WhiteElo "1810"]
[BlackElo "1627"]
[Annotator "NA RC"]
[PlyCount "92"]
[EventDate "2022.01.11"]
[EventType "tourn"]
[EventCountry "BLR"]
[SourceTitle "playchess.com"]
[Source "ChessBase"]
[SourceQuality "1"]
[TimeControl "40/5400+30:1800+30"]

1. Nf3 {[%emt 0:00:09]} d5 {[%emt 0:00:09]} 2. g3 {[%emt 0:00:08]} Nf6 {[%emt 0:00:12]} 3. Bg2 {[%emt 0:00:08]} c6 {[%emt 0:00:15]} 4. d3 {[%emt 0:00:11]} Bf5 {[%emt 0:00:23]} 5. O-O {[%emt 0:00:37]} h6 {[%emt 0:00:40]} 6. Nbd2 {[%emt 0:03:01]} Nbd7 {[%emt 0:00:56]} 7. Qe1 {[%emt 0:03:26]} e5 {[%emt 0:03:31]} 8. e4 {[%emt 0:04:23]} dxe4 {[%emt 0:00:18]} 9. Nxe4 {[%emt 0:10:29]} Nxe4 {[%emt 0:01:11]} 10. dxe4 {[%emt 0:00:02]} Be6 {[%emt 0:04:10]} 11. b3 {[%emt 0:06:42]} Qc7 {[%emt 0:09:48]} 12. Bb2 {[%emt 0:13:17]} Bd6 {[%emt 0:03:41]} 13. Qc3 {[%emt 0:07:33]} O-O {[%emt 0:02:56]} 14. Rad1 {[%emt 0:03:24]} a5 {[%emt 0:03:50]} 15. a3 {[%emt 0:02:20]} Rfd8 {[%emt 0:06:33]} 16. Nh4 {[%emt 0:08:52]} Be7 {[%emt 0:04:43]} (16... a4 $15 {feels stronger.} 17. Nf5 Bxf5 18. exf5 axb3) 17. Nf5 {[%emt 0:02:22]} Bf6 {[%emt 0:02:35]} 18. Qf3 {[%emt 0:04:56]} Bxf5 {[%emt 0:12:10]} 19. Qxf5 {[%emt 0:00:08]} a4 {[%emt 0:01:22]} 20. b4 {[%emt 0:15:19]} Nb6 {[%emt 0:05:11]} 21. Bc1 {[%emt 0:00:13]} Rd6 {[%emt 0:04:12]} 22. Qg4 {[%emt 0:02:06]} Qd7 {[%emt 0:04:32]} (22... Rad8 $11) 23. Qxd7 {[%emt 0:01:22]} Rxd7 {[%emt 0:00:07]} 24. Rxd7 {[%emt 0:00:04]} Nxd7 {[%emt 0:00:06]} 25. Be3 {[%emt 0:00:10]} Rd8 {[%emt 0:10:57]} 26. Rd1 {[%emt 0:01:41]} Kf8 {[%emt 0:08:41]} 27. c4 {[%emt 0:03:12]} Ke8 {[%emt 0:03:26]} 28. Bf3 {[%emt 0:01:52]} Bg5 {[%emt 0:02:37]} 29. Bxg5 {[%emt 0:04:16]} hxg5 {[%emt 0:00:05]} 30. Be2 {[%emt 0:00:05]} b6 {[%emt 0:03:00]} 31. f3 {[%emt 0:02:03]} f6 {[%emt 0:02:35]} 32. Kf2 {[%emt 0:00:45]} c5 {[%emt 0:00:55]} 33. b5 {[%emt 0:00:33]} Ke7 {[%emt 0:00:11]} 34. Rd5 {[%emt 0:01:00]} Ra8 {[%emt 0:00:32]} 35. Bf1 {[%emt 0:00:29]} Ra7 {[%emt 0:00:49]} 36. Ke3 {[%emt 0:00:21]} Nf8 {[%emt 0:00:32]} 37. Bh3 {[%emt 0:00:06]} Ng6 {[%emt 0:00:34]} 38. Bf5 {[%emt 0:00:41]} Nh8 {[%emt 0:00:19]} 39. Rd2 {[%emt 0:00:57]} Nf7 {[%emt 0:00:08]} 40. Bh7 {[%emt 0:00:00]} Ra8 {[%emt 0:00:00]} 41. Bf5 $19 {[%emt 0:10:46]} Nd6 {[%emt 0:00:49]} 42. Kd3 {[%emt 0:01:49]} Nxf5 {[%emt 0:17:57]} 43. exf5 {[%emt 0:00:02]} Rd8+ {[%emt 0:00:10]} 44. Kc3 {[%emt 0:00:55]} Rd4 {[%emt 0:00:32]} 45. Rd3 {[%emt 0:05:11]} Kd6 {[%emt 0:07:29]} 46. Rd2 {[%emt 0:01:43]} Kc7 {[%emt 0:01:07]} 1/2-1/2

[Event "Belarus-ch Women 2022"]
[Site "Minsk"]
[Date "2022.01.17"]
[Round "7.1"]
[White "Khomich, Maryna"]
[Black "Sidorenja, Milena"]
[Result "0-1"]
[ECO "A07"]
[WhiteElo "1627"]
[BlackElo "1510"]
[Annotator "NA RC"]
[PlyCount "72"]
[EventDate "2022.01.11"]
[EventType "tourn"]
[EventCountry "BLR"]
[SourceTitle "playchess.com"]
[Source "ChessBase"]
[SourceQuality "1"]
[TimeControl "40/5400+30:1800+30"]

1. Nf3 {[%emt 0:00:03]} d5 {[%emt 0:00:08]} 2. g3 {[%emt 0:00:06]} Nf6 {[%emt 0:00:22]} 3. Bg2 {[%emt 0:00:08]} Bf5 {[%emt 0:00:14]} 4. O-O {[%emt 0:00:39]} e6 {[%emt 0:00:10]} 5. d3 {[%emt 0:03:50]} h6 {[%emt 0:01:34]} 6. Nc3 {[%emt 0:02:09]} c6 {[%emt 0:00:49]} 7. Nd2 {[%emt 0:00:34]} Bc5 {[%emt 0:00:59]} 8. e4 {[%emt 0:01:24]} Bh7 {[%emt 0:00:15]} 9. Kh1 {[%emt 0:05:28]} O-O {[%emt 0:04:19]} 10. Qe1 {[%emt 0:03:15]} a5 {[%emt 0:01:15]} 11. f4 {[%emt 0:03:30]} Na6 {[%emt 0:01:37]} 12. a3 {[%emt 0:04:14]} b5 {[%emt 0:00:26]} 13. e5 {[%emt 0:01:43]} Nd7 {[%emt 0:01:45]} 14. Ne2 {[%emt 0:06:37]} Bb6 {[%emt 0:10:06]} 15. g4 {[%emt 0:07:01]} c5 {[%emt 0:17:43]} 16. Qg3 {[%emt 0:01:12]} c4 {[%emt 0:04:12]} 17. f5 {[%emt 0:04:33]} cxd3 {[%emt 0:17:39]} 18. cxd3 {[%emt 0:00:08]} Qe7 {[%emt 0:03:28]} 19. d4 {[%emt 0:10:27]} Kh8 {[%emt 0:04:02]} 20. f6 {[%emt 0:12:53]} gxf6 {[%emt 0:04:52]} 21. exf6 {[%emt 0:10:24]} Qd8 {[%emt 0:00:11]} 22. Qh4 {[%emt 0:00:46]} Rg8 {[%emt 0:00:45]} 23. Nf3 {[%emt 0:08:59]} Qxf6 {[%emt 0:15:58]} 24. g5 {[%emt 0:00:13]} Qe7 {[%emt 0:00:40]} 25. Qxh6 {[%emt 0:02:04]} Rg6 {[%emt 0:00:07]} 26. Qh4 {[%emt 0:01:19]} Bc7 {[%emt 0:03:45]} 27. Nf4 {[%emt 0:01:12]} Bxf4 {[%emt 0:02:28]} 28. Bxf4 {[%emt 0:00:12]} f6 {[%emt 0:01:50]} 29. gxf6 {[%emt 0:02:41]} Qxf6 {[%emt 0:00:10]} 30. Ng5 {[%emt 0:01:55]} Qe7 {[%emt 0:01:32]} 31. Bd2 {[%emt 0:02:49]} Rf8 {[%emt 0:01:20]} 32. Rxf8+ {[%emt 0:02:24]} Nxf8 {[%emt 0:00:05]} 33. Rf1 {[%emt 0:00:12]} Rg7 {[%emt 0:01:32]} 34. Qh6 {[%emt 0:01:32]} Nb8 {[%emt 0:00:34]} 35. Bf4 {[%emt 0:00:52]} Nbd7 {[%emt 0:00:04]} 36. Qh4 {[%emt 0:00:29]} Ng6 {[%emt 0:00:18]} 0-1

[Event "Belarus-ch Women 2022"]
[Site "Minsk"]
[Date "2022.01.17"]
[Round "7.2"]
[White "Koishman, Karina"]
[Black "Norman, Kseniya"]
[Result "0-1"]
[ECO "D01"]
[WhiteElo "1359"]
[BlackElo "1810"]
[Annotator "NA RC"]
[PlyCount "58"]
[EventDate "2022.01.11"]
[EventType "tourn"]
[EventCountry "BLR"]
[SourceTitle "playchess.com"]
[Source "ChessBase"]
[SourceQuality "1"]
[TimeControl "40/5400+30:1800+30"]

{[%evp 8,41,9,-15,-11,-7,-18,-16,6,-18,0,-22,-7,-119,-116,32767,32767,-116,-120,32767,32767,-124,-120,-124,-123,-116,32767,-115,-127,-125,-111,-120,-123,-118,-134,-129]} 1. d4 {[%emt 0:00:03]} Nf6 {[%emt 0:01:37]} 2. Nc3 {[%emt 0:00:12]} d5 {[%emt 0:00:09]} 3. Bg5 {[%emt 0:00:10]} Nbd7 {[%emt 0:00:07]} 4. f3 {[%emt 0:00:11]} c5 {[%emt 0:00:55]} 5. e4 {[%emt 0:00:19]} cxd4 {[%emt 0:00:52]} 6. Bxf6 {[%emt 0:00:29]} Nxf6 {[%emt 0:01:21]} 7. Qxd4 {[%emt 0:00:40]} dxe4 $1 {[%emt 0:02:05]} 8. Bb5+ {[%emt 0:06:32]} Bd7 {[%emt 0:02:22]} 9. O-O-O {[%emt 0:03:17]} Bxb5 {[%emt 0:27:48]} 10. Qe5 {[%emt 0:06:42] [#]} (10. Nxb5 $11 {remains equal.} Qxd4 11. Rxd4) 10... Bd3 $1 {[%emt 0:06:53]} 11. cxd3 {[%emt 0:14:02]} exd3 {[%emt 0:00:40]} 12. Qb5+ {[%emt 0:05:35]} Qd7 {[%emt 0:01:08]} 13. Qxd3 {[%emt 0:01:09]} Qxd3 {[%emt 0:00:59]} 14. Rxd3 {[%emt 0:00:10]} e6 {[%emt 0:01:31]} 15. Nge2 {[%emt 0:01:44]} Be7 {[%emt 0:01:01]} 16. Rhd1 {[%emt 0:06:02]} a6 {[%emt 0:01:48]} 17. Ng3 {[%emt 0:02:10]} Rc8 {[%emt 0:04:20]} 18. Kb1 {[%emt 0:02:19]} Rd8 {[%emt 0:07:05]} 19. Nge4 {[%emt 0:04:24]} Rxd3 {[%emt 0:01:03]} 20. Rxd3 {[%emt 0:00:48]} Nd7 {[%emt 0:01:22]} 21. Nd6+ $17 {[%emt 0:07:19]} Bxd6 {[%emt 0:02:04]} 22. Rxd6 {[%emt 0:03:44]} Ke7 {[%emt 0:00:13]} 23. Rd4 {[%emt 0:00:21]} Rd8 {[%emt 0:02:44]} 24. b4 {[%emt 0:04:59]} Nb6 {[%emt 0:02:51]} 25. Rxd8 {[%emt 0:07:51]} Kxd8 {[%emt 0:00:02]} 26. Ne4 {[%emt 0:00:11]} Kd7 {[%emt 0:04:05]} 27. g4 {[%emt 0:02:42]} Nc4 {[%emt 0:02:46]} 28. Kc1 {[%emt 0:02:04]} Ne5 {[%emt 0:01:00]} 29. Nc5+ {[%emt 0:02:44]} Kc6 {[%emt 0:00:31]} 0-1

[Event "Belarus-ch Women 2022"]
[Site "Minsk"]
[Date "2022.01.17"]
[Round "7.4"]
[White "Shaban, Aliaksandra"]
[Black "Ajusheva, Renata"]
[Result "1/2-1/2"]
[ECO "B06"]
[WhiteElo "1680"]
[BlackElo "1464"]
[Annotator "NA RC"]
[PlyCount "60"]
[EventDate "2022.01.11"]
[EventType "tourn"]
[EventCountry "BLR"]
[SourceTitle "playchess.com"]
[Source "ChessBase"]
[SourceQuality "1"]
[TimeControl "40/5400+30:1800+30"]

1. e4 {[%emt 0:00:01]} g6 {[%emt 0:04:18]} 2. d4 {[%emt 0:01:46]} Bg7 {[%emt 0:00:05]} 3. Nf3 {[%emt 0:02:29]} d6 {[%emt 0:01:08]} 4. Bd3 {[%emt 0:00:31]} Nc6 {[%emt 0:03:17]} 5. c3 {[%emt 0:02:06]} e5 {[%emt 0:01:01]} 6. dxe5 {[%emt 0:00:57]} Nxe5 {[%emt 0:00:06]} 7. Nxe5 {[%emt 0:00:09]} Bxe5 {[%emt 0:00:05]} 8. Be3 {[%emt 0:01:32]} Ne7 {[%emt 0:00:27]} 9. Nd2 {[%emt 0:02:44]} O-O {[%emt 0:00:41]} 10. Nf3 {[%emt 0:01:10]} Bg7 {[%emt 0:00:09]} 11. O-O {[%emt 0:00:26]} Nc6 {[%emt 0:00:10]} 12. Bc2 {[%emt 0:01:03]} h6 {[%emt 0:01:27]} 13. Qd2 {[%emt 0:01:50]} Kh7 {[%emt 0:00:12]} 14. Nd4 {[%emt 0:01:49]} Nxd4 {[%emt 0:01:43]} 15. Bxd4 {[%emt 0:00:15]} Bxd4 {[%emt 0:00:17]} 16. Qxd4 {[%emt 0:00:39]} Bd7 {[%emt 0:06:44]} 17. Rfe1 {[%emt 0:03:14]} Bc6 {[%emt 0:00:43]} 18. f3 {[%emt 0:02:46]} Re8 {[%emt 0:02:20]} 19. Rad1 {[%emt 0:04:49]} Qg5 {[%emt 0:00:56]} 20. Bb3 {[%emt 0:02:11]} Re7 {[%emt 0:03:40]} 21. Bd5 {[%emt 0:00:57]} Bxd5 {[%emt 0:00:21]} 22. Qxd5 {[%emt 0:00:08]} Qxd5 {[%emt 0:00:14]} 23. exd5 {[%emt 0:00:10]} Rae8 {[%emt 0:00:06]} 24. Kf2 {[%emt 0:00:40]} Kg7 {[%emt 0:00:14]} 25. Rxe7 {[%emt 0:01:09]} Rxe7 {[%emt 0:00:04]} 26. c4 {[%emt 0:00:36]} f5 {[%emt 0:00:26]} 27. g3 {[%emt 0:02:02]} g5 {[%emt 0:00:12]} 28. Rd3 {[%emt 0:00:54]} Kf6 {[%emt 0:00:48]} 29. Re3 {[%emt 0:01:58]} Rxe3 30. Kxe3 {[%emt 0:00:01]} Ke5 {[%emt 0:00:40]} 1/2-1/2

[Event "Belarus-ch Women 2022"]
[Site "Minsk"]
[Date "2022.01.17"]
[Round "7.5"]
[White "Liashkevich, Lizaveta"]
[Black "Bendik, Margarita"]
[Result "1-0"]
[ECO "A40"]
[WhiteElo "1569"]
[BlackElo "1388"]
[Annotator "NA RC"]
[PlyCount "67"]
[EventDate "2022.01.11"]
[EventType "tourn"]
[EventCountry "BLR"]
[SourceTitle "playchess.com"]
[Source "ChessBase"]
[SourceQuality "1"]
[TimeControl "40/5400+30:1800+30"]

1. d4 {[%emt 0:00:02]} b5 {[%emt 0:00:03]} 2. a4 {[%emt 0:14:13]} b4 {[%emt 0:00:17]} 3. c4 {[%emt 0:01:02]} Bb7 {[%emt 0:02:03]} 4. Nd2 {[%emt 0:07:51]} Nf6 {[%emt 0:00:47]} 5. Qc2 {[%emt 0:03:10]} e6 {[%emt 0:03:42]} 6. e4 {[%emt 0:00:20]} d5 {[%emt 0:02:22]} 7. e5 {[%emt 0:10:15]} Nfd7 {[%emt 0:03:13]} 8. c5 {[%emt 0:03:37]} Nc6 {[%emt 0:02:36]} 9. Nb3 {[%emt 0:04:37]} a5 {[%emt 0:01:38]} 10. Bd3 {[%emt 0:01:56]} h6 {[%emt 0:02:14]} 11. f4 {[%emt 0:05:06]} Be7 {[%emt 0:05:53]} 12. Nf3 {[%emt 0:04:20]} Qc8 {[%emt 0:07:24]} 13. Qf2 {[%emt 0:06:39]} Ba6 {[%emt 0:01:41]} 14. Bc2 {[%emt 0:01:00]} Bc4 {[%emt 0:04:41]} 15. Nbd2 {[%emt 0:01:11]} Qa6 {[%emt 0:03:32]} 16. Qe3 {[%emt 0:01:22]} b3 {[%emt 0:15:11]} 17. Nxb3 {[%emt 0:06:17]} Nb4 {[%emt 0:05:42]} 18. Bb1 {[%emt 0:00:42]} Rb8 {[%emt 0:07:30]} 19. Nbd2 {[%emt 0:02:11]} Bd3 {[%emt 0:00:39]} 20. Kf2 {[%emt 0:01:04]} Bxb1 {[%emt 0:00:42]} 21. Rxb1 {[%emt 0:00:11]} Nd3+ {[%emt 0:00:17]} 22. Kg3 {[%emt 0:00:22]} Rb4 {[%emt 0:05:30]} 23. b3 {[%emt 0:03:02]} g5 {[%emt 0:06:46]} 24. fxg5 {[%emt 0:00:43]} hxg5 {[%emt 0:01:50]} 25. Ba3 {[%emt 0:05:27]} g4 {[%emt 0:03:56]} 26. Bxb4 {[%emt 0:01:56]} gxf3 {[%emt 0:00:12]} 27. Bc3 {[%emt 0:03:33]} fxg2 {[%emt 0:07:52]} 28. Kxg2 {[%emt 0:01:41]} Nf8 {[%emt 0:03:21]} 29. Rhf1 {[%emt 0:01:49]} Ng6 {[%emt 0:01:20]} 30. Kh1 {[%emt 0:01:07]} Rh5 {[%emt 0:01:56]} 31. Rf3 {[%emt 0:00:55]} Bg5 {[%emt 0:00:30]} 32. Qxd3 {[%emt 0:01:13]} Qc8 {[%emt 0:00:39]} 33. Rbf1 {[%emt 0:00:19]} Rh7 {[%emt 0:00:30]} 34. Rxf7 {[%emt 0:00:37]} 1-0

[Event "Belarus-ch Women 2022"]
[Site "Minsk"]
[Date "2022.01.18"]
[Round "8.1"]
[White "Sidorenja, Milena"]
[Black "Bendik, Margarita"]
[Result "1/2-1/2"]
[ECO "A48"]
[WhiteElo "1510"]
[BlackElo "1388"]
[Annotator "NA RC"]
[PlyCount "126"]
[EventDate "2022.01.11"]
[EventType "tourn"]
[EventCountry "BLR"]
[SourceTitle "playchess.com"]
[Source "ChessBase"]
[SourceQuality "1"]
[TimeControl "40/5400+30:1800+30"]

1. d4 {[%emt 0:00:02]} Nf6 {[%emt 0:00:09]} 2. Nf3 {[%emt 0:00:14]} g6 {[%emt 0:00:04]} 3. Bf4 {[%emt 0:00:14]} Bg7 {[%emt 0:00:10]} 4. e3 {[%emt 0:00:14]} O-O {[%emt 0:00:10]} 5. c3 {[%emt 0:00:17]} d6 {[%emt 0:00:04]} 6. h3 {[%emt 0:00:24]} b6 {[%emt 0:00:08]} 7. Bc4 {[%emt 0:00:54]} Bb7 {[%emt 0:00:07]} 8. O-O {[%emt 0:00:17]} Nbd7 {[%emt 0:00:20]} 9. Nbd2 {[%emt 0:00:14]} Qe8 {[%emt 0:05:43]} 10. Bh2 {[%emt 0:00:21]} e5 {[%emt 0:00:25]} 11. a4 {[%emt 0:03:05]} a6 {[%emt 0:02:30]} 12. b4 {[%emt 0:00:24]} Qe7 {[%emt 0:00:28]} 13. Qb3 {[%emt 0:02:06]} e4 {[%emt 0:02:26]} 14. Ne1 {[%emt 0:00:11]} Kh8 {[%emt 0:01:53]} 15. Nc2 {[%emt 0:04:09]} Nh5 {[%emt 0:06:17]} 16. Be2 {[%emt 0:03:15]} Qg5 {[%emt 0:01:54]} 17. c4 {[%emt 0:17:32]} f5 {[%emt 0:01:14]} 18. c5 {[%emt 0:00:20]} f4 {[%emt 0:11:49]} 19. Bxh5 {[%emt 0:03:06]} Qxh5 {[%emt 0:08:29]} 20. cxd6 {[%emt 0:07:36]} f3 {[%emt 0:05:14]} 21. Qe6 {[%emt 0:11:22]} Nf6 {[%emt 0:10:05]} 22. Qe5 {[%emt 0:00:58]} g5 {[%emt 0:01:36]} 23. dxc7 {[%emt 0:13:15]} Rae8 {[%emt 0:08:50]} 24. Qg3 {[%emt 0:00:26]} Nd5 {[%emt 0:00:58]} 25. gxf3 {[%emt 0:12:10]} exf3 {[%emt 0:01:26]} 26. Nc4 {[%emt 0:01:56]} Bc8 {[%emt 0:03:24]} 27. Nd6 {[%emt 0:00:12]} Bxh3 {[%emt 0:01:59]} 28. Nxe8 {[%emt 0:00:06]} Nc3 {[%emt 0:00:29]} 29. Rfe1 {[%emt 0:01:03]} Rxe8 {[%emt 0:01:39]} 30. e4 {[%emt 0:01:21]} Rf8 {[%emt 0:13:38]} 31. e5 {[%emt 0:13:44]} Be6 {[%emt 0:04:24]} 32. Rac1 {[%emt 0:01:56]} Rc8 {[%emt 0:03:24]} 33. d5 {[%emt 0:01:52]} Nxd5 {[%emt 0:01:47]} 34. Nd4 {[%emt 0:00:03]} Nf4 {[%emt 0:01:42]} 35. Nxe6 {[%emt 0:00:12]} Nxe6 {[%emt 0:00:20]} 36. Red1 {[%emt 0:01:13]} Nf4 {[%emt 0:01:46]} 37. Rd8+ {[%emt 0:00:41]} Bf8 {[%emt 0:00:04]} 38. Re1 {[%emt 0:00:29]} Ne2+ {[%emt 0:01:24]} 39. Rxe2 {[%emt 0:00:12]} fxe2 {[%emt 0:00:04]} 40. Qc3 {[%emt 0:00:00]} Qg4+ {[%emt 0:00:00]} 41. Bg3 {[%emt 0:01:21]} Kg8 {[%emt 0:11:21]} 42. Rxc8 {[%emt 0:01:14]} Qxc8 {[%emt 0:00:07]} 43. f3 {[%emt 0:01:15]} a5 {[%emt 0:10:36]} 44. bxa5 {[%emt 0:00:28]} Qh3 {[%emt 0:02:09]} 45. Kf2 {[%emt 0:10:53]} Qf1+ {[%emt 0:05:58]} 46. Ke3 {[%emt 0:00:14]} Bc5+ {[%emt 0:00:43]} 47. Ke4 {[%emt 0:00:16]} e1=Q+ {[%emt 0:03:59]} 48. Bxe1 {[%emt 0:00:40]} Qa6 {[%emt 0:00:20]} 49. Qb3+ {[%emt 0:00:16]} Kg7 {[%emt 0:00:11]} 50. Qd3 {[%emt 0:01:40]} Qb7+ {[%emt 0:00:44]} 51. Qd5 {[%emt 0:00:07]} Qxc7 {[%emt 0:00:09]} 52. a6 {[%emt 0:00:20]} Kg6 {[%emt 0:00:59]} 53. Bd2 {[%emt 0:06:38]} Qc8 {[%emt 0:00:18]} 54. e6 {[%emt 0:00:42]} h6 {[%emt 0:00:51]} 55. a7 {[%emt 0:01:11]} Qa6 {[%emt 0:00:18]} 56. Qf5+ {[%emt 0:00:59]} Kh5 {[%emt 0:00:29]} 57. Qf7+ {[%emt 0:03:52]} Kh4 {[%emt 0:00:05]} 58. Kd5 {[%emt 0:08:26]} Qd3+ {[%emt 0:00:39]} 59. Kc6 {[%emt 0:00:22]} Qd6+ {[%emt 0:00:08]} 60. Kb7 {[%emt 0:00:32]} Qd5+ {[%emt 0:00:16]} 61. Kb8 {[%emt 0:00:46]} Qd8+ {[%emt 0:01:31]} 62. Kb7 {[%emt 0:00:14]} Qd5+ {[%emt 0:00:05]} 63. Kb8 {[%emt 0:00:45]} Qd8+ {[%emt 0:00:25]} 1/2-1/2

[Event "Belarus-ch Women 2022"]
[Site "Minsk"]
[Date "2022.01.18"]
[Round "8.2"]
[White "Ajusheva, Renata"]
[Black "Liashkevich, Lizaveta"]
[Result "1/2-1/2"]
[ECO "A13"]
[WhiteElo "1464"]
[BlackElo "1569"]
[Annotator "NA RC"]
[PlyCount "73"]
[EventDate "2022.01.11"]
[EventType "tourn"]
[EventCountry "BLR"]
[SourceTitle "playchess.com"]
[Source "ChessBase"]
[SourceQuality "1"]
[TimeControl "40/5400+30:1800+30"]

1. c4 {[%emt 0:00:57]} e6 {[%emt 0:00:17]} 2. Nf3 {[%emt 0:00:18]} d5 {[%emt 0:00:20]} 3. e3 {[%emt 0:00:08]} Nf6 {[%emt 0:01:31]} 4. b3 {[%emt 0:01:47]} c5 {[%emt 0:02:30]} 5. Bb2 {[%emt 0:01:24]} Be7 {[%emt 0:01:22]} 6. Nc3 {[%emt 0:03:40]} O-O {[%emt 0:01:38]} 7. cxd5 {[%emt 0:07:33]} Nxd5 {[%emt 0:11:28]} 8. Nxd5 {[%emt 0:01:00]} Qxd5 {[%emt 0:04:44]} 9. Bc4 {[%emt 0:06:33]} Qd8 {[%emt 0:02:04]} 10. O-O {[%emt 0:00:15]} Nc6 {[%emt 0:09:35]} 11. Rc1 {[%emt 0:05:23]} b6 {[%emt 0:09:47]} 12. Qc2 {[%emt 0:03:16]} Bb7 {[%emt 0:02:43]} 13. Be2 {[%emt 0:00:12]} Rc8 {[%emt 0:00:39]} 14. Qb1 {[%emt 0:00:07]} Bf6 {[%emt 0:03:25]} 15. Rfd1 {[%emt 0:04:44]} Bxb2 {[%emt 0:10:21]} 16. Qxb2 {[%emt 0:00:18]} Qe7 {[%emt 0:00:14]} 17. d4 {[%emt 0:00:28]} Qf6 {[%emt 0:02:56]} 18. Qb1 {[%emt 0:06:27]} cxd4 {[%emt 0:01:14]} 19. Nxd4 {[%emt 0:00:24]} Nxd4 {[%emt 0:01:02]} 20. Rxd4 {[%emt 0:00:08]} Qg5 {[%emt 0:04:20]} 21. Rg4 {[%emt 0:02:47]} Qa5 {[%emt 0:14:22]} 22. Rgc4 {[%emt 0:04:42]} Qg5 {[%emt 0:03:42]} 23. Bf1 {[%emt 0:03:06]} Rxc4 {[%emt 0:01:38]} 24. Rxc4 {[%emt 0:00:07]} Ba6 {[%emt 0:01:50]} 25. Ra4 {[%emt 0:03:06]} Bxf1 {[%emt 0:00:20]} 26. Qxf1 {[%emt 0:00:03]} a5 {[%emt 0:00:52]} 27. Rc4 {[%emt 0:00:11]} Rd8 {[%emt 0:01:43]} 28. Qc1 {[%emt 0:00:11]} h6 {[%emt 0:01:46]} 29. Rc8 {[%emt 0:03:30]} Qd5 {[%emt 0:01:44]} 30. Rxd8+ {[%emt 0:00:35]} Qxd8 {[%emt 0:00:05]} 31. g3 {[%emt 0:00:11]} Qd6 {[%emt 0:01:07]} 32. Qc8+ {[%emt 0:01:18]} Kh7 {[%emt 0:00:17]} 33. Qc2+ {[%emt 0:00:18]} Kg8 {[%emt 0:00:06]} 34. a4 {[%emt 0:00:16]} Kh8 {[%emt 0:00:57]} 35. Qc4 {[%emt 0:01:05]} Kg8 {[%emt 0:01:06]} 36. e4 {[%emt 0:00:09]} Kh8 {[%emt 0:01:46]} 37. Qc8+ {[%emt 0:01:58]} 1/2-1/2